fUST/lending_fUST_20240216
["ID","MTS","AMOUNT","RATE_DAILY","PERIOD"]
[314187767,1708054251067,-2019.41,0.00022739,2]
[314187769,1708054251077,-500.0,0.00022739,2]
[314187771,1708054251087,-500.0,0.00022739,2]
[314187773,1708054251096,-500.0,0.00022739,2]
[314187775,1708054251106,-9252.95,0.00022739,2]
[314187777,1708054251116,-287.1515,0.000229,2]
[314187780,1708054251127,-200.0,0.00022989,7]
[314187782,1708054251136,-360.0,0.00022989,7]
[314187784,1708054251146,-500.0,0.00023013,2]
[314187786,1708054251157,-500.0,0.00023013,2]
[314187788,1708054251167,-500.0,0.00023013,2]
[314187790,1708054251176,-547.44,0.00023013,2]
[314187791,1708054251186,-500.0,0.00023013,2]
[314187792,1708054251195,-1221.25,0.00023013,2]
[314187793,1708054251204,-500.0,0.00023013,2]
[314187794,1708054251214,-500.0,0.00023013,2]
[314187795,1708054251223,-665.87,0.00023013,2]
[314187796,1708054251232,-500.0,0.00023013,2]
[314187797,1708054251242,-500.0,0.00023013,2]
[314187798,1708054251253,-517.35726041,0.00023013,2]
[314187799,1708054251263,-500.0,0.00023013,2]
[314187800,1708054251272,-500.0,0.00023013,2]
[314187801,1708054251282,-506.01,0.00023013,2]
[314187802,1708054251292,-500.0,0.00023013,2]
[314187803,1708054251302,-500.0,0.00023013,2]
[314187804,1708054251312,-500.0,0.00023013,2]
[314187805,1708054251321,-500.0,0.00023013,2]
[314187806,1708054251332,-1574.67,0.00023013,2]
[314187808,1708054251342,-500.0,0.00023013,2]
[314187810,1708054251356,-500.0,0.00023013,2]
[314187812,1708054251366,-500.0,0.00023013,2]
[314187814,1708054251375,-1693.02,0.00023013,2]
[314187816,1708054251386,-1674.29,0.00023013,2]
[314187819,1708054251400,-514.68224427,0.00023013,2]
[314187821,1708054251410,-548.59545529,0.00023013,2]
[314187823,1708054251419,-492.77349711,0.00023013,2]
[314187825,1708054251430,-569.14,0.00023013,2]
[314187827,1708054251440,-500.0,0.00023013,2]
[314187829,1708054251449,-894.49,0.00023013,2]
[314187831,1708054251459,-218.32437751,0.00023013,2]
[314187833,1708054251469,-500.0,0.00023013,2]
[314187835,1708054251479,-818.02,0.00023013,2]
[314187837,1708054251489,-625.33,0.00023013,2]
[314187839,1708054251500,-513.88966281,0.00023013,2]
[314187841,1708054251509,-644.52,0.00023013,2]
[314187843,1708054251519,-1876.77,0.00023013,2]
[314187845,1708054251529,-500.0,0.00023013,2]
[314187847,1708054251540,-645.75,0.00023013,2]
[314187849,1708054251550,-500.0,0.00023013,2]
[314187851,1708054251559,-500.0,0.00023013,2]
[314187853,1708054251569,-500.0,0.00023013,2]
[314187855,1708054251578,-500.0,0.00023013,2]
[314187857,1708054251588,-507.5,0.00023013,2]
[314187859,1708054251598,-728.18,0.00023013,2]
[314187861,1708054251608,-1036.45,0.00023013,2]
[314187863,1708054251616,-500.0,0.00023013,2]
[314187865,1708054251626,-508.95887999,0.00023013,2]
[314187867,1708054251636,-800.26,0.00023013,2]
[314187869,1708054251646,-639.33,0.00023013,2]
[314187871,1708054251655,-715.64,0.00023013,2]
[314187873,1708054251665,-889.66,0.00023013,2]
[314187875,1708054251674,-500.0,0.00023013,2]
[314187877,1708054251684,-588.41,0.00023013,2]
[314187879,1708054251693,-500.0,0.00023013,2]
[314187881,1708054251703,-500.0,0.00023013,2]
[314187883,1708054251713,-500.0,0.00023013,2]
[314187885,1708054251722,-584.6875714,0.00023013,2]
[314187887,1708054251732,-2776.0,0.00023013,2]
[314187889,1708054251741,-500.0,0.00023013,2]
[314187891,1708054251752,-718.01,0.00023013,2]
[314187893,1708054251762,-9937.14,0.00023013,2]
[314187895,1708054251771,-3484.33,0.00023013,2]
[314187897,1708054251781,-1000.0,0.00023013,2]
[314187900,1708054251791,-1127.49,0.00023013,2]
[314187902,1708054251801,-500.0,0.00023013,2]
[314187904,1708054251810,-500.0,0.00023013,2]
[314187906,1708054251819,-1972.62,0.00023013,2]
[314187908,1708054251829,-3485.39,0.00023013,2]
[314187910,1708054251838,-500.0,0.00023013,2]
[314187912,1708054251847,-500.0,0.00023013,2]
[314187913,1708054251856,-1948.69,0.00023013,2]
[314187916,1708054251866,-1682.2,0.00023013,2]
[314187918,1708054251876,-186.090456,0.00023013,2]
[314187920,1708054251885,-500.0,0.00023013,2]
[314187922,1708054251894,-500.0,0.00023013,2]
[314187924,1708054251903,-500.0,0.00023013,2]
[314187926,1708054251913,-493.80298258,0.00023013,2]
[314187928,1708054251922,-899.34,0.00023013,2]
[314187930,1708054251931,-2527.09,0.00023013,2]
[314187932,1708054251941,-1647.54,0.00023013,2]
[314187934,1708054251950,-500.0,0.00023013,2]
[314187936,1708054251959,-16248.91,0.00023013,2]
[314187938,1708054251968,-1219.32,0.00023013,2]
[314187940,1708054251978,-500.0,0.00023013,2]
[314187950,1708054252059,-2910.33,0.00023013,2]
[314187952,1708054252070,-2603.98,0.00023013,2]
[314187954,1708054252079,-500.0,0.00023013,30]
[314187956,1708054252088,-18667.13,0.00023013,2]
[314187958,1708054252098,-852.11,0.00023013,2]
[314187960,1708054252107,-500.0,0.00023013,2]
[314187962,1708054252116,-1591.21,0.00023013,2]
[314187964,1708054252126,-15067.1,0.00023013,2]
[314187966,1708054252136,-3743.66,0.00023013,2]
[314187968,1708054252146,-500.0,0.00023013,2]
[314187970,1708054252156,-2066.91,0.00023013,2]
[314187972,1708054252165,-1505.22,0.00023013,2]
[314187974,1708054252175,-500.0,0.00023013,2]
[314187976,1708054252184,-3281.48,0.00023013,2]
[314187978,1708054252194,-500.0,0.00023013,2]
[314187980,1708054252203,-2563.61,0.00023013,2]
[314187982,1708054252212,-500.0,0.00023013,2]
[314187984,1708054252221,-3197.98,0.00023013,2]
[314187986,1708054252231,-558.77,0.00023013,2]
[314187988,1708054252240,-500.0,0.00023013,2]
[314187989,1708054252250,-23026.58,0.00023013,2]
[314187991,1708054252260,-15412.25,0.00023013,2]
[314187993,1708054252269,-2019.41,0.00023013,2]
[314187995,1708054252279,-500.0,0.00023013,2]
[314187997,1708054252288,-500.0,0.00023013,2]
[314187999,1708054252297,-500.0,0.00023013,2]
[314188001,1708054252306,-9252.95,0.00023013,2]
[314188003,1708054252316,-335.6388208,0.00023014,2]
[314188005,1708054252324,-149875.97932935,0.00023051,2]
[314188007,1708054252334,-620.00663103,0.00023068,2]
[314188009,1708054252344,-300.0,0.00023183,2]
[314188011,1708054252353,-500.0,0.00023287,2]
[314188013,1708054252362,-500.0,0.00023287,2]
[314188015,1708054252372,-500.0,0.00023287,2]
[314188017,1708054252383,-547.44,0.00023287,2]
[314188019,1708054252394,-500.0,0.00023287,2]
[314188021,1708054252404,-1221.25,0.00023287,2]
[314188023,1708054252414,-500.0,0.00023287,2]
[314188025,1708054252423,-500.0,0.00023287,2]
[314188027,1708054252434,-665.87,0.00023287,2]
[314188029,1708054252443,-520.75686874,0.00023287,2]
[314188031,1708054252452,-500.0,0.00023287,2]
[314188033,1708054252461,-500.0,0.00023287,2]
[314188035,1708054252473,-500.0,0.00023287,2]
[314188037,1708054252482,-506.01,0.00023287,2]
[314188039,1708054252491,-426.27070748,0.00023287,2]
[314188041,1708054252501,-500.0,0.00023287,2]
[314188043,1708054252511,-500.0,0.00023287,2]
[314188045,1708054252520,-500.0,0.00023287,2]
[314188047,1708054252529,-1574.67,0.00023287,2]
[314188049,1708054252538,-500.0,0.00023287,2]
[314188051,1708054252547,-500.0,0.00023287,2]
[314188053,1708054252556,-500.0,0.00023287,2]
[314188055,1708054252566,-1693.02,0.00023287,2]
[314188057,1708054252575,-1674.29,0.00023287,2]
[314188059,1708054252583,-569.14,0.00023287,2]
[314188061,1708054252593,-500.0,0.00023287,2]
[314188063,1708054252602,-894.49,0.00023287,2]
[314188065,1708054252611,-406.73749848,0.00023287,2]
[314188067,1708054252620,-818.02,0.00023287,2]
[314188069,1708054252629,-625.33,0.00023287,2]
[314188071,1708054252639,-644.52,0.00023287,2]
[314188073,1708054252648,-1876.77,0.00023287,2]
[314188075,1708054252657,-500.0,0.00023287,2]
[314188077,1708054252666,-645.75,0.00023287,2]
[314188078,1708054252675,-500.0,0.00023287,2]
[314188080,1708054252684,-500.0,0.00023287,2]
[314188082,1708054252693,-516.61565259,0.00023287,2]
[314188084,1708054252702,-532.80017551,0.00023287,2]
[314188086,1708054252711,-507.5,0.00023287,2]
[314188088,1708054252720,-728.18,0.00023287,2]
[314188090,1708054252729,-1036.45,0.00023287,2]
[314188092,1708054252738,-500.0,0.00023287,2]
[314188094,1708054252749,-800.26,0.00023287,2]
[314188096,1708054252758,-639.33,0.00023287,2]
[314188098,1708054252767,-715.64,0.00023287,2]
[314188100,1708054252777,-889.66,0.00023287,2]
[314188102,1708054252786,-500.0,0.00023287,2]
[314188104,1708054252795,-588.41,0.00023287,2]
[314188106,1708054252804,-208.90512241,0.00023287,2]
[314188108,1708054252814,-500.0,0.00023287,2]
[314188110,1708054252823,-266.46865642,0.00023287,2]
[314188112,1708054252832,-2776.0,0.00023287,2]
[314188114,1708054252842,-500.0,0.00023287,2]
[314188115,1708054252851,-718.01,0.00023287,2]
[314188117,1708054252861,-9937.14,0.00023287,2]
[314188119,1708054252871,-1018.05971528,0.00023287,2]
[314188121,1708054252881,-3484.33,0.00023287,2]
[314188124,1708054252891,-1127.49,0.00023287,2]
[314188126,1708054252901,-500.0,0.00023287,2]
[314188128,1708054252910,-500.0,0.00023287,2]
[314188130,1708054252920,-1972.62,0.00023287,2]
[314188131,1708054252930,-3485.39,0.00023287,2]
[314188134,1708054252940,-500.0,0.00023287,2]
[314188135,1708054252949,-500.0,0.00023287,2]
[314188137,1708054252959,-1948.69,0.00023287,2]
[314188139,1708054252969,-1682.2,0.00023287,2]
[314188141,1708054252979,-500.0,0.00023287,2]
[314188143,1708054252988,-500.0,0.00023287,2]
[314188145,1708054252998,-500.0,0.00023287,2]
[314188147,1708054253007,-899.34,0.00023287,2]
[314188149,1708054253017,-2527.09,0.00023287,2]
[314188151,1708054253026,-1647.54,0.00023287,2]
[314188154,1708054253036,-500.0,0.00023287,2]
[314188156,1708054253046,-16248.91,0.00023287,2]
[314188157,1708054253055,-1219.32,0.00023287,2]
[314188159,1708054253065,-500.0,0.00023287,2]
[314188161,1708054253075,-2910.33,0.00023287,2]
[314188163,1708054253084,-2603.98,0.00023287,2]
[314188165,1708054253093,-500.0,0.00023287,30]
[314188167,1708054253103,-18667.13,0.00023287,2]
[314188169,1708054253112,-852.11,0.00023287,2]
[314188171,1708054253121,-500.0,0.00023287,2]
[314188173,1708054253131,-1591.21,0.00023287,2]
[314188174,1708054253142,-15067.1,0.00023287,2]
[314188175,1708054253152,-3743.66,0.00023287,2]
[314188176,1708054253162,-500.0,0.00023287,2]
[314188177,1708054253171,-2066.91,0.00023287,2]
[314188183,1708054253237,-1505.22,0.00023287,2]
[314188185,1708054253247,-500.0,0.00023287,2]
[314188187,1708054253257,-3281.48,0.00023287,2]
[314188188,1708054253266,-500.0,0.00023287,2]
[314188190,1708054253276,-2563.61,0.00023287,2]
[314188192,1708054253286,-500.0,0.00023287,2]
[314188194,1708054253297,-3197.98,0.00023287,2]
[314188196,1708054253307,-558.77,0.00023287,2]
[314188198,1708054253317,-500.0,0.00023287,2]
[314188199,1708054253326,-23026.58,0.00023287,2]
[314188200,1708054253336,-15412.25,0.00023287,2]
[314188201,1708054253346,-2019.41,0.00023287,2]
[314188203,1708054253355,-500.0,0.00023287,2]
[314188205,1708054253365,-500.0,0.00023287,2]
[314188206,1708054253375,-500.0,0.00023287,2]
[314188207,1708054253384,-24101.7949028,0.00023334,2]
[314188209,1708054253396,-3261.78113211,0.00023514,2]
[314188211,1708054253405,-500.0,0.00023561,2]
[314188213,1708054253415,-500.0,0.00023561,2]
[314188215,1708054253424,-500.0,0.00023561,2]
[314188217,1708054253434,-547.44,0.00023561,2]
[314188218,1708054253444,-500.0,0.00023561,2]
[314188220,1708054253453,-1221.25,0.00023561,2]
[314188222,1708054253464,-500.0,0.00023561,2]
[314188224,1708054253473,-612.56968936,0.00023561,2]
[314188226,1708054253483,-665.87,0.00023561,2]
[314188228,1708054253494,-500.0,0.00023561,2]
[314188230,1708054253504,-500.0,0.00023561,2]
[314188232,1708054253514,-240.23543785,0.00023561,2]
[314188234,1708054253523,-506.01,0.00023561,2]
[314188236,1708054253532,-500.0,0.00023561,2]
[314188238,1708054253541,-500.0,0.00023561,2]
[314188240,1708054253551,-500.0,0.00023561,2]
[314188241,1708054253560,-1574.67,0.00023561,2]
[314188243,1708054253569,-500.0,0.00023561,2]
[314188245,1708054253579,-500.0,0.00023561,2]
[314188247,1708054253588,-500.0,0.00023561,2]
[314188249,1708054253598,-1693.02,0.00023561,2]
[314188251,1708054253607,-1674.29,0.00023561,2]
[314188253,1708054253616,-569.14,0.00023561,2]
[314188255,1708054253625,-500.0,0.00023561,2]
[314188257,1708054253635,-894.49,0.00023561,2]
[314188259,1708054253644,-818.02,0.00023561,2]
[314188261,1708054253654,-625.33,0.00023561,2]
[314188263,1708054253664,-644.52,0.00023561,2]
[314188265,1708054253673,-1876.77,0.00023561,2]
[314188267,1708054253683,-500.0,0.00023561,2]
[314188269,1708054253692,-645.75,0.00023561,2]
[314188271,1708054253702,-500.0,0.00023561,2]
[314188273,1708054253711,-500.0,0.00023561,2]
[314188275,1708054253721,-507.5,0.00023561,2]
[314188277,1708054253730,-728.18,0.00023561,2]
[314188279,1708054253739,-1036.45,0.00023561,2]
[314188281,1708054253748,-500.0,0.00023561,2]
[314188283,1708054253758,-800.26,0.00023561,2]
[314188285,1708054253766,-639.33,0.00023561,2]
[314188287,1708054253775,-715.64,0.00023561,2]
[314188289,1708054253784,-889.66,0.00023561,2]
[314188291,1708054253794,-500.0,0.00023561,2]
[314188293,1708054253803,-588.41,0.00023561,2]
[314188295,1708054253812,-500.0,0.00023561,2]
[314188297,1708054253821,-2776.0,0.00023561,2]
[314188299,1708054253831,-439.56025719,0.00023561,2]
[314188301,1708054253840,-718.01,0.00023561,2]
[314188303,1708054253849,-9937.14,0.00023561,2]
[314188305,1708054253859,-3484.33,0.00023561,2]
[314188307,1708054253868,-1127.49,0.00023561,2]
[314188309,1708054253878,-500.0,0.00023561,2]
[314188311,1708054253888,-500.0,0.00023561,2]
[314188313,1708054253897,-1972.62,0.00023561,2]
[314188315,1708054253906,-3485.39,0.00023561,2]
[314188317,1708054253915,-500.0,0.00023561,2]
[314188319,1708054253924,-500.0,0.00023561,2]
[314188321,1708054253934,-1948.69,0.00023561,2]
[314188323,1708054253943,-1682.2,0.00023561,2]
[314188325,1708054253953,-500.0,0.00023561,2]
[314188327,1708054253962,-500.0,0.00023561,2]
[314188329,1708054253972,-500.0,0.00023561,2]
[314188330,1708054253981,-899.34,0.00023561,2]
[314188332,1708054253991,-2527.09,0.00023561,2]
[314188334,1708054254002,-1647.54,0.00023561,2]
[314188335,1708054254011,-500.0,0.00023561,2]
[314188337,1708054254022,-16248.91,0.00023561,2]
[314188339,1708054254032,-1219.32,0.00023561,2]
[314188341,1708054254042,-500.0,0.00023561,2]
[314188343,1708054254051,-2910.33,0.00023561,2]
[314188345,1708054254060,-2603.98,0.00023561,2]
[314188347,1708054254070,-500.0,0.00023561,30]
[314188349,1708054254079,-18667.13,0.00023561,2]
[314188351,1708054254089,-852.11,0.00023561,2]
[314188353,1708054254098,-500.0,0.00023561,2]
[314188355,1708054254108,-1591.21,0.00023561,2]
[314188357,1708054254117,-15067.1,0.00023561,2]
[314188358,1708054254126,-3743.66,0.00023561,2]
[314188359,1708054254136,-500.0,0.00023561,2]
[314188360,1708054254145,-2066.91,0.00023561,2]
[314188361,1708054254154,-1505.22,0.00023561,2]
[314188362,1708054254162,-500.0,0.00023561,2]
[314188363,1708054254171,-3281.48,0.00023561,2]
[314188364,1708054254181,-500.0,0.00023561,2]
[314188365,1708054254190,-2563.61,0.00023561,2]
[314188366,1708054254199,-500.0,0.00023561,2]
[314188367,1708054254208,-3197.98,0.00023561,2]
[314188368,1708054254218,-558.77,0.00023561,2]
[314188369,1708054254227,-500.0,0.00023561,2]
[314188370,1708054254236,-23026.58,0.00023561,2]
[314188371,1708054254247,-15412.25,0.00023561,2]
[314188372,1708054254256,-2019.41,0.00023561,2]
[314188377,1708054254317,-500.0,0.00023561,2]
[314188379,1708054254327,-500.0,0.00023561,2]
[314188381,1708054254337,-500.0,0.00023561,2]
[314188383,1708054254347,-300.0,0.00023707,2]
[314188385,1708054254356,-500.0,0.00023835,2]
[314188387,1708054254365,-500.0,0.00023835,2]
[314188389,1708054254375,-500.0,0.00023835,2]
[314188391,1708054254386,-547.44,0.00023835,2]
[314188392,1708054254399,-500.0,0.00023835,2]
[314188394,1708054254409,-1221.25,0.00023835,2]
[314188396,1708054254419,-500.0,0.00023835,2]
[314188398,1708054254428,-665.87,0.00023835,2]
[314188400,1708054254438,-611.61642722,0.00023835,2]
[314188402,1708054254448,-500.0,0.00023835,2]
[314188404,1708054254457,-506.01,0.00023835,2]
[314188406,1708054254466,-500.0,0.00023835,2]
[314188408,1708054254477,-500.0,0.00023835,2]
[314188410,1708054254487,-500.0,0.00023835,2]
[314188412,1708054254497,-1574.67,0.00023835,2]
[314188414,1708054254506,-500.0,0.00023835,2]
[314188416,1708054254516,-500.0,0.00023835,2]
[314188418,1708054254525,-500.0,0.00023835,2]
[314188420,1708054254534,-1693.02,0.00023835,2]
[314188422,1708054254543,-1674.29,0.00023835,2]
[314188424,1708054254553,-569.14,0.00023835,2]
[314188426,1708054254562,-500.0,0.00023835,2]
[314188428,1708054254571,-894.49,0.00023835,2]
[314188430,1708054254580,-818.02,0.00023835,2]
[314188432,1708054254590,-625.33,0.00023835,2]
[314188434,1708054254599,-644.52,0.00023835,2]
[314188436,1708054254608,-1876.77,0.00023835,2]
[314188438,1708054254618,-500.0,0.00023835,2]
[314188440,1708054254628,-645.75,0.00023835,2]
[314188442,1708054254637,-500.0,0.00023835,2]
[314188444,1708054254646,-500.0,0.00023835,2]
[314188446,1708054254656,-507.5,0.00023835,2]
[314188448,1708054254665,-728.18,0.00023835,2]
[314188450,1708054254675,-1036.45,0.00023835,2]
[314188452,1708054254685,-500.0,0.00023835,2]
[314188454,1708054254694,-800.26,0.00023835,2]
[314188456,1708054254703,-639.33,0.00023835,2]
[314188458,1708054254711,-715.64,0.00023835,2]
[314188460,1708054254721,-889.66,0.00023835,2]
[314188462,1708054254730,-500.0,0.00023835,2]
[314188464,1708054254739,-588.41,0.00023835,2]
[314188466,1708054254749,-224.88235121,0.00023835,2]
[314188468,1708054254758,-2776.0,0.00023835,2]
[314188470,1708054254767,-718.01,0.00023835,2]
[314188472,1708054254776,-9937.14,0.00023835,2]
[314188474,1708054254786,-3484.33,0.00023835,2]
[314188476,1708054254795,-1127.49,0.00023835,2]
[314188478,1708054254803,-500.0,0.00023835,2]
[314188479,1708054254813,-500.0,0.00023835,2]
[314188482,1708054254823,-1972.62,0.00023835,2]
[314188484,1708054254832,-3485.39,0.00023835,2]
[314188485,1708054254841,-376.28123535,0.00023835,2]
[314188487,1708054254850,-500.0,0.00023835,2]
[314188490,1708054254860,-1948.69,0.00023835,2]
[314188492,1708054254869,-1682.2,0.00023835,2]
[314188494,1708054254879,-500.0,0.00023835,2]
[314188495,1708054254888,-500.0,0.00023835,2]
[314188497,1708054254897,-272.15980403,0.00023835,2]
[314188499,1708054254906,-899.34,0.00023835,2]
[314188501,1708054254915,-2527.09,0.00023835,2]
[314188503,1708054254925,-1647.54,0.00023835,2]
[314188505,1708054254934,-500.0,0.00023835,2]
[314188508,1708054254944,-16248.91,0.00023835,2]
[314188509,1708054254953,-1219.32,0.00023835,2]
[314188512,1708054254963,-500.0,0.00023835,2]
[314188514,1708054254973,-2910.33,0.00023835,2]
[314188515,1708054254982,-2603.98,0.00023835,2]
[314188517,1708054254992,-500.0,0.00023835,30]
[314188519,1708054255003,-18667.13,0.00023835,2]
[314188521,1708054255012,-852.11,0.00023835,2]
[314188523,1708054255022,-500.0,0.00023835,2]
[314188525,1708054255031,-1591.21,0.00023835,2]
[314188526,1708054255041,-15067.1,0.00023835,2]
[314188528,1708054255050,-3743.66,0.00023835,2]
[314188530,1708054255059,-500.0,0.00023835,2]
[314188531,1708054255068,-2066.91,0.00023835,2]
[314188533,1708054255078,-1505.22,0.00023835,2]
[314188534,1708054255088,-500.0,0.00023835,2]
[314188535,1708054255097,-3281.48,0.00023835,2]
[314188536,1708054255107,-500.0,0.00023835,2]
[314188537,1708054255117,-2563.61,0.00023835,2]
[314188538,1708054255127,-500.0,0.00023835,2]
[314188539,1708054255137,-3197.98,0.00023835,2]
[314188540,1708054255147,-558.77,0.00023835,2]
[314188541,1708054255156,-511.32084953,0.00023835,2]
[314188543,1708054255165,-23026.58,0.00023835,2]
[314188545,1708054255174,-15412.25,0.00023835,2]
[314188547,1708054255183,-2019.41,0.00023835,2]
[314188549,1708054255193,-500.0,0.00023835,2]
[314188551,1708054255201,-500.0,0.00023835,2]
[314188553,1708054255211,-500.0,0.00023835,2]
[314188555,1708054255220,-155.6840107,0.00023836,2]
[314188557,1708054255229,-153.0,0.00023836,2]
[314188558,1708054255238,-153.0,0.00023836,2]
[314188559,1708054255249,-185.117946,0.000239,2]
[314188560,1708054255258,-4871.01640814,0.00024,3]
[314188561,1708054255319,-500.0,0.00024109,2]
[314188562,1708054255329,-500.0,0.00024109,2]
[314188563,1708054255338,-500.0,0.00024109,2]
[314188564,1708054255349,-547.44,0.00024109,2]
[314188565,1708054255361,-500.0,0.00024109,2]
[314188566,1708054255370,-1221.25,0.00024109,2]
[314188567,1708054255381,-500.0,0.00024109,2]
[314188568,1708054255392,-665.87,0.00024109,2]
[314188569,1708054255402,-500.0,0.00024109,2]
[314188570,1708054255411,-506.01,0.00024109,2]
[314188571,1708054255420,-500.0,0.00024109,2]
[314188572,1708054255431,-500.0,0.00024109,2]
[314188573,1708054255440,-500.0,0.00024109,2]
[314188574,1708054255450,-1574.67,0.00024109,2]
[314188575,1708054255460,-500.0,0.00024109,2]
[314188576,1708054255470,-500.0,0.00024109,2]
[314188577,1708054255480,-500.0,0.00024109,2]
[314188578,1708054255489,-1693.02,0.00024109,2]
[314188579,1708054255499,-1674.29,0.00024109,2]
[314188580,1708054255508,-569.14,0.00024109,2]
[314188581,1708054255517,-500.0,0.00024109,2]
[314188582,1708054255527,-894.49,0.00024109,2]
[314188583,1708054255536,-818.02,0.00024109,2]
[314188584,1708054255546,-625.33,0.00024109,2]
[314188585,1708054255555,-644.52,0.00024109,2]
[314188586,1708054255567,-1876.77,0.00024109,2]
[314188587,1708054255577,-500.0,0.00024109,2]
[314188588,1708054255587,-645.75,0.00024109,2]
[314188589,1708054255597,-500.0,0.00024109,2]
[314188590,1708054255608,-560.96791037,0.00024109,2]
[314188591,1708054255618,-507.5,0.00024109,2]
[314188592,1708054255629,-728.18,0.00024109,2]
[314188593,1708054255638,-1036.45,0.00024109,2]
[314188594,1708054255648,-500.0,0.00024109,2]
[314188595,1708054255658,-800.26,0.00024109,2]
[314188596,1708054255668,-639.33,0.00024109,2]
[314188597,1708054255677,-715.64,0.00024109,2]
[314188598,1708054255687,-889.66,0.00024109,2]
[314188599,1708054255696,-507.48118249,0.00024109,2]
[314188600,1708054255706,-588.41,0.00024109,2]
[314188601,1708054255716,-2776.0,0.00024109,2]
[314188602,1708054255726,-718.01,0.00024109,2]
[314188603,1708054255736,-9937.14,0.00024109,2]
[314188604,1708054255745,-3484.33,0.00024109,2]
[314188605,1708054255755,-1127.49,0.00024109,2]
[314188606,1708054255762,-500.0,0.00024109,2]
[314188607,1708054255772,-500.0,0.00024109,2]
[314188608,1708054255781,-1972.62,0.00024109,2]
[314188609,1708054255791,-3485.39,0.00024109,2]
[314188610,1708054255801,-500.0,0.00024109,2]
[314188611,1708054255811,-1948.69,0.00024109,2]
[314188612,1708054255820,-1682.2,0.00024109,2]
[314188613,1708054255829,-500.0,0.00024109,2]
[314188614,1708054255838,-500.0,0.00024109,2]
[314188615,1708054255847,-899.34,0.00024109,2]
[314188616,1708054255857,-2527.09,0.00024109,2]
[314188617,1708054255866,-1647.54,0.00024109,2]
[314188618,1708054255875,-500.0,0.00024109,2]
[314188619,1708054255884,-16248.91,0.00024109,2]
[314188620,1708054255893,-1219.32,0.00024109,2]
[314188621,1708054255903,-500.0,0.00024109,2]
[314188622,1708054255912,-2910.33,0.00024109,2]
[314188623,1708054255921,-2603.98,0.00024109,2]
[314188624,1708054255930,-500.0,0.00024109,30]
[314188625,1708054255940,-18667.13,0.00024109,2]
[314188626,1708054255949,-852.11,0.00024109,2]
[314188627,1708054255958,-500.0,0.00024109,2]
[314188628,1708054255968,-1591.21,0.00024109,2]
[314188629,1708054255977,-15067.1,0.00024109,2]
[314188630,1708054255986,-3743.66,0.00024109,2]
[314188631,1708054255996,-500.0,0.00024109,2]
[314188632,1708054256007,-2066.91,0.00024109,2]
[314188633,1708054256016,-1505.22,0.00024109,2]
[314188634,1708054256026,-500.0,0.00024109,2]
[314188635,1708054256035,-3281.48,0.00024109,2]
[314188636,1708054256044,-500.0,0.00024109,2]
[314188637,1708054256053,-2563.61,0.00024109,2]
[314188638,1708054256062,-500.0,0.00024109,2]
[314188639,1708054256071,-3197.98,0.00024109,2]
[314188640,1708054256080,-558.77,0.00024109,2]